bitfinex-derivatives/quotes_BNBF0:USTF0_20251203
["timestamp","ask_amount","ask_price","bid_price","bid_amount"]
[1764773174322,1.07361489,904.41,903.53,0.96]
[1764773174527,3.74605073,905.57,903.53,0.96]
[1764773174528,1.07361489,904.38,903.53,0.96]
[1764773174723,2.67575052,905.2,903.53,0.96]
[1764773174724,1.07361489,904.24,903.53,0.96]
[1764773174928,1.07361489,904.19,903.53,0.96]
[1764773175124,2.67575052,905.0,903.53,0.96]
[1764773175125,1.07361489,903.92,903.53,0.96]
[1764773175427,1.07361489,903.9,903.53,0.96]
[1764773175624,1.07361489,903.69,903.53,0.96]
[1764773176130,1.07361489,903.65,903.53,0.96]
[1764773176330,1.07361489,903.57,903.53,0.96]
[1764773176531,1.62676302,903.69,903.53,0.96]
[1764773176929,1.62676302,903.68,903.53,0.96]
[1764773177228,1.62676302,903.65,903.53,0.96]
[1764773177427,1.09409302,903.61,903.53,0.96]
[1764773177629,1.09409302,903.6,903.53,0.96]
[1764773178333,1.09409302,903.67,903.53,0.96]
[1764773178831,1.09409302,903.65,903.53,0.96]
[1764773179329,1.09409302,903.73,903.53,0.96]
[1764773179532,3.74605073,904.87,903.53,0.96]
[1764773179533,1.09409302,903.81,903.53,0.96]
[1764773179732,1.09409302,903.82,903.53,0.96]
[1764773179931,1.09409302,903.75,903.53,0.96]
[1764773180132,1.09409302,903.65,903.53,0.96]
[1764773180429,1.09409302,903.92,903.53,0.96]
[1764773181031,1.09409302,903.81,903.53,0.96]
[1764773181233,1.09409302,903.85,903.53,0.96]
[1764773182232,1.09409302,903.86,903.53,0.96]
[1764773182437,1.09409302,903.85,903.53,0.96]
[1764773182635,1.09409302,903.85,902.72,1.391]
[1764773182939,2.67575052,904.66,902.72,1.391]
[1764773182940,1.09409302,903.77,902.72,1.391]
[1764773183137,1.09409302,903.79,902.72,1.391]
[1764773183338,1.09409302,904.08,902.72,1.391]
[1764773183835,1.09409302,904.03,902.72,1.391]
[1764773184134,3.74605073,905.22,902.72,1.391]
[1764773184135,1.09409302,904.0,902.72,1.391]
[1764773184339,1.09409302,903.99,902.72,1.391]
[1764773184638,1.09409302,903.94,902.72,1.391]
[1764773185035,1.09409302,903.96,902.72,1.391]
[1764773185236,1.09409302,903.98,902.72,1.391]
[1764773185434,1.09409302,904.04,902.72,1.391]
[1764773185835,1.09409302,904.05,902.72,1.391]
[1764773186041,1.09409302,904.04,902.72,1.391]
[1764773186235,1.09409302,904.05,902.72,1.391]
[1764773186639,1.09409302,904.06,902.72,1.391]
[1764773187037,1.09409302,904.05,902.72,1.391]
[1764773187637,1.09409302,904.04,902.72,1.391]
[1764773188438,1.09409302,904.05,902.72,1.391]
[1764773188741,3.74605073,905.19,902.72,1.391]
[1764773188742,1.09409302,903.94,902.72,1.391]
[1764773189441,1.09409302,903.95,902.72,1.391]
[1764773189644,1.09409302,903.94,902.72,1.391]
[1764773190242,1.09409302,903.91,902.72,1.391]
[1764773190644,1.09409302,903.88,902.72,1.391]
[1764773190845,1.09409302,903.74,902.72,1.391]
[1764773191041,1.09409302,903.75,902.72,1.391]
[1764773191245,1.09409302,903.77,902.72,1.391]
[1764773192344,0.00948917,904.67,902.72,1.391]
[1764773192345,1.09409302,903.67,902.72,1.391]
[1764773193043,1.09409302,903.66,902.72,1.391]
[1764773193243,1.09409302,903.69,902.72,1.391]
[1764773193746,1.09409302,903.76,902.72,1.391]
[1764773194345,1.09409302,903.78,902.72,1.391]
[1764773194647,1.09409302,903.63,902.72,1.391]
[1764773194948,1.09409302,903.61,902.72,1.391]
[1764773195148,2.67575052,904.44,902.72,1.391]
[1764773195149,1.09409302,903.63,902.72,1.391]
[1764773195345,1.09409302,903.62,902.72,1.391]
[1764773195550,1.09409302,903.52,902.72,1.391]
[1764773195751,1.09409302,903.45,902.72,1.391]
[1764773195946,2.67575052,904.28,902.72,1.391]
[1764773195947,1.09409302,903.41,902.72,1.391]
[1764773196150,3.74605073,904.58,902.72,1.391]
[1764773196151,1.09409302,903.14,902.72,1.391]
[1764773196449,1.09409302,903.06,902.72,1.391]
[1764773196950,1.09409302,903.09,902.72,1.391]
[1764773197251,1.09409302,903.05,902.72,1.391]
[1764773197446,1.09409302,903.12,902.72,1.391]
[1764773197845,1.09409302,903.18,902.72,1.391]
[1764773198644,1.09409302,903.25,902.72,1.391]
[1764773199049,1.09409302,903.33,902.72,1.391]
[1764773199445,1.09409302,903.36,902.72,1.391]
[1764773199646,1.09409302,903.45,902.72,1.391]
[1764773200047,1.09409302,903.37,902.72,1.391]
[1764773200251,1.09409302,903.39,902.72,1.391]
[1764773200450,1.09409302,903.38,902.72,1.391]
[1764773201849,1.09409302,903.4,902.72,1.391]
[1764773202044,1.09409302,903.42,902.72,1.391]
[1764773202248,1.09409302,903.47,902.72,1.391]
[1764773202447,1.09409302,903.52,902.72,1.391]
[1764773203050,1.09409302,903.51,902.72,1.391]
[1764773203347,1.09409302,903.48,902.64,1.42]
[1764773203551,1.62676302,903.64,902.64,1.42]
[1764773203552,1.09409302,903.29,902.64,1.42]
[1764773203746,2.67575052,904.11,902.64,1.42]
[1764773203747,1.09409302,903.15,902.64,1.42]
[1764773203947,1.09409302,903.16,902.64,1.42]
[1764773204148,1.09409302,903.37,902.64,1.42]
[1764773204349,1.62676302,903.53,902.64,1.42]
[1764773204350,1.09409302,903.34,902.64,1.42]
[1764773204550,2.67575052,904.15,902.64,1.42]
[1764773204551,1.09409302,903.25,902.64,1.42]
[1764773204954,1.09409302,903.25,901.82,0.01181664]
[1764773205154,1.09409302,903.28,900.92,0.01296677]
[1764773205351,1.09409302,903.22,900.66,0.77227438]
[1764773205749,1.09409302,903.17,900.62,0.77227438]
[1764773206052,1.09409302,903.24,900.69,0.77227438]
[1764773206353,1.09409302,903.29,900.87,1.128]
[1764773206554,1.09409302,903.28,900.87,1.128]
[1764773206855,1.09409302,903.29,900.87,1.128]
[1764773207154,1.09409302,903.32,900.87,1.128]
[1764773207555,1.09409302,903.45,900.88,1.236]
[1764773207855,1.09409302,903.49,900.88,1.236]
[1764773208055,1.09409302,903.55,900.92,0.77227438]
[1764773208350,1.09409302,903.54,900.92,0.77227438]
[1764773208956,1.09409302,903.57,900.95,0.77227438]
[1764773209256,1.09409302,903.63,901.01,0.77227438]
[1764773209556,1.09409302,903.63,901.0,0.77227438]
[1764773209851,1.09409302,903.75,901.12,0.77227438]
[1764773210353,1.09409302,903.75,901.13,0.77227438]
[1764773210553,1.09409302,903.76,901.14,0.77227438]
[1764773211054,1.09409302,903.87,901.25,0.77227438]
[1764773211253,1.09409302,903.94,901.33,0.77227438]
[1764773211458,1.09409302,904.0,901.39,0.77227438]
[1764773211855,1.09409302,904.0,900.88,1.236]
[1764773211856,1.09409302,904.08,901.46,0.77227438]
[1764773212055,1.09409302,904.14,901.52,0.77227438]
[1764773212257,1.09409302,904.14,900.88,1.236]
[1764773212258,1.09409302,904.16,901.57,0.77227438]
[1764773212458,1.09409302,904.22,901.63,0.77227438]
[1764773212870,1.09409302,904.2,901.61,0.77227438]
[1764773213073,1.09409302,904.21,901.62,0.77227438]
[1764773213262,2.67575052,905.01,900.88,1.236]
[1764773213263,1.09409302,904.26,901.71,0.77227438]
[1764773213560,1.09409302,904.28,901.73,0.77227438]
[1764773213856,1.09409302,904.29,901.74,0.77227438]
[1764773214056,1.09409302,904.33,901.78,0.77227438]
[1764773214259,1.09409302,904.34,901.81,0.77227438]
[1764773214455,1.09409302,904.34,900.88,1.24898979]
[1764773214456,1.09409302,904.35,901.82,0.77227438]
[1764773214661,1.09409302,904.39,901.86,0.77227438]
[1764773215255,1.09409302,904.38,901.87,0.77227438]
[1764773215455,1.09409302,904.37,901.85,0.77227438]
[1764773216257,1.09409302,904.39,901.89,0.77227438]
[1764773216656,1.09409302,904.4,901.9,0.77227438]
[1764773216860,1.09409302,904.4,901.89,0.77227438]
[1764773217058,1.09409302,904.39,901.89,0.77227438]
[1764773217360,1.09409302,904.38,901.89,0.77227438]
[1764773218259,1.09409302,904.37,901.9,0.77227438]
[1764773219358,1.09409302,904.37,901.91,0.77227438]
[1764773219556,1.09409302,904.37,901.93,0.77227438]
[1764773219757,1.09409302,904.38,901.93,0.77227438]
[1764773220057,1.09409302,904.37,901.92,0.77227438]
[1764773220260,1.09409302,904.3,901.85,0.77227438]
[1764773220461,1.09409302,904.3,901.93,1.226]
[1764773221157,1.09409302,904.29,901.93,1.226]
[1764773221462,0.00993485,905.2,901.93,1.226]
[1764773221463,1.09409302,904.19,901.93,1.226]
[1764773221659,1.09409302,904.13,901.93,1.226]
[1764773221859,1.09409302,904.12,901.93,1.226]
[1764773222061,1.09409302,903.96,901.93,1.226]
[1764773222463,1.09409302,904.02,901.93,1.226]
[1764773222660,1.09409302,904.0,901.93,1.226]
[1764773222864,3.74605073,905.09,901.93,1.226]
[1764773222865,1.09409302,903.89,901.93,1.226]
[1764773223064,1.09409302,903.88,901.93,1.226]
[1764773223264,1.09409302,903.78,901.93,1.226]
[1764773223465,1.09409302,903.66,901.93,1.226]
[1764773223960,1.09409302,903.61,901.93,1.226]
[1764773224165,1.09409302,903.39,901.93,1.226]
[1764773224560,1.09409302,903.32,901.93,1.226]
[1764773224764,1.09409302,903.28,901.93,1.226]
[1764773225264,1.09409302,903.25,901.93,1.226]
[1764773225465,1.09409302,903.32,901.93,1.226]
[1764773225764,1.09409302,903.33,901.93,1.226]
[1764773225964,1.09409302,903.4,901.93,1.226]
[1764773226261,1.09409302,903.38,901.93,1.226]
[1764773227161,1.09409302,903.35,901.93,1.226]
[1764773227562,1.09409302,903.36,901.94,0.983]
[1764773227864,1.09409302,903.39,901.94,0.983]
[1764773228560,1.09409302,903.42,901.94,0.983]
[1764773228765,1.09409302,903.44,901.94,0.983]
[1764773229262,1.09409302,903.46,901.94,0.983]
[1764773229666,1.09409302,903.47,901.94,0.983]
[1764773230062,1.09409302,903.61,901.94,0.983]
[1764773230267,1.09409302,903.63,901.94,0.983]
[1764773230469,1.09409302,903.68,901.94,0.983]
[1764773230867,1.09409302,903.7,901.94,0.983]
[1764773231065,1.09409302,903.68,901.94,0.983]
[1764773231264,1.09409302,903.63,901.94,0.983]
[1764773231970,1.09409302,903.6,901.94,0.983]
[1764773232170,1.09409302,903.39,901.94,0.983]
[1764773232665,1.09409302,903.33,901.94,0.983]
[1764773232969,1.09409302,903.29,901.94,0.983]
[1764773233266,1.09409302,903.26,901.94,0.983]
[1764773233467,1.09409302,903.39,901.94,0.983]
[1764773233773,2.67575052,904.18,901.94,0.983]
[1764773233774,1.09409302,903.46,901.94,0.983]
[1764773234071,1.09409302,903.48,901.94,0.983]
[1764773234273,1.09409302,903.44,901.94,0.983]
[1764773234467,1.09409302,903.43,901.94,0.983]
[1764773235270,1.09409302,903.42,901.94,0.983]
[1764773236074,1.09409302,903.41,901.94,0.983]
[1764773236368,1.09409302,903.36,901.94,0.983]
[1764773236568,1.09409302,903.28,901.94,0.983]
[1764773237268,1.09409302,903.21,901.94,0.983]
[1764773237470,1.09409302,903.19,901.94,0.983]
[1764773237674,1.09409302,903.16,901.94,0.983]
[1764773237876,0.19284479,902.88,901.94,0.983]
[1764773243878,1.09409302,903.41,901.94,0.983]
[1764773244077,2.67575052,904.22,901.94,0.983]
[1764773244078,1.09409302,903.52,901.94,0.983]
[1764773244678,0.19276735,903.13,901.94,0.983]
[1764773245683,0.19276735,903.13,901.93,1.226]
[1764773247782,1.09409302,903.68,901.93,1.226]
[1764773247984,0.19275934,903.01,901.93,1.226]
[1764773248287,1.09409302,903.7,901.93,1.226]
[1764773248583,0.13189402,904.82,901.93,1.226]
[1764773248584,0.19274226,903.15,901.95,0.77227438]
[1764773248781,1.09409302,903.74,901.97,0.77227438]
[1764773248993,1.09409302,903.82,902.04,0.77227438]
[1764773249384,1.09409302,903.68,901.93,1.226]
[1764773249585,1.09409302,903.64,901.93,1.226]
[1764773250091,0.19275987,903.22,901.94,0.88]
[1764773253791,0.19275987,903.22,901.95,1.393]
[1764773257198,1.09409302,903.16,901.95,1.393]
[1764773257695,1.09409302,903.14,901.95,1.393]
[1764773257993,1.09409302,903.17,901.95,1.393]
[1764773258198,0.19275987,903.22,901.95,1.393]
[1764773258998,1.09409302,903.21,901.95,1.393]
[1764773259198,0.19275987,903.22,901.95,1.393]
[1764773259498,1.28685289,903.22,901.95,1.393]
[1764773260396,1.09409302,903.21,901.95,1.393]
[1764773262201,1.09409302,903.19,901.95,1.393]
[1764773262500,1.09409302,903.13,901.95,1.393]
[1764773262701,1.09409302,903.12,901.95,1.393]
[1764773262894,1.09409302,903.09,901.95,1.393]
[1764773263200,1.09409302,903.07,901.95,1.393]
[1764773263500,1.09409302,903.05,901.95,1.393]
[1764773263699,1.09409302,903.07,901.95,1.393]
[1764773263899,0.19275987,903.22,901.95,1.393]
[1764773263900,1.09409302,903.13,901.95,1.393]
[1764773264096,1.09409302,903.11,901.95,1.393]
[1764773264499,1.09409302,903.06,901.95,1.393]
[1764773264701,1.09409302,902.99,901.95,1.393]
[1764773265002,1.09409302,902.97,901.95,1.393]
[1764773265305,1.09409302,903.15,901.95,1.393]
[1764773265499,1.09409302,903.16,901.95,1.393]
[1764773266203,1.09409302,903.11,901.95,1.393]
[1764773266403,1.09409302,903.1,901.95,1.393]
[1764773266604,1.09409302,903.02,901.95,1.393]
[1764773267104,1.09409302,903.16,901.95,1.393]
[1764773267301,0.19275987,903.22,901.95,1.393]
[1764773271911,1.09409302,903.09,901.95,1.393]
[1764773272103,1.09409302,903.05,901.95,1.393]
[1764773272303,1.09409302,903.07,901.95,1.393]
[1764773273010,1.09409302,903.06,901.95,1.393]
[1764773273509,1.09409302,903.07,901.95,1.393]
[1764773273709,1.28685289,903.22,901.95,1.393]
[1764773273909,1.09409302,903.13,901.95,1.393]
[1764773274308,1.09409302,903.11,901.95,1.393]
[1764773274507,1.09409302,903.08,901.95,1.393]
[1764773275109,1.09409302,903.07,901.95,1.393]
[1764773275310,1.09409302,903.05,901.95,1.393]
[1764773275712,1.09409302,903.04,901.95,1.393]
[1764773276011,1.09409302,902.9,901.95,1.393]
[1764773276207,1.09409302,902.83,901.95,1.393]
[1764773276406,1.09409302,902.82,901.95,1.393]
[1764773276607,1.09409302,902.8,901.95,1.393]
[1764773277213,1.09409302,902.78,901.95,1.393]
[1764773277409,1.09409302,902.77,901.95,1.393]
[1764773277615,0.19275987,903.22,901.95,1.393]
[1764773277616,1.09409302,903.01,901.95,1.393]
[1764773277813,1.09409302,903.05,901.95,1.393]
[1764773278014,1.09409302,903.01,901.95,1.393]
[1764773278308,1.09409302,902.98,901.95,1.393]
[1764773278514,1.09409302,902.97,901.95,1.393]
[1764773279216,1.09409302,902.93,901.95,1.393]
[1764773279917,1.09409302,902.92,901.95,1.393]
[1764773280827,1.09409302,902.86,901.95,1.393]
[1764773281017,1.09409302,902.76,901.95,1.393]
[1764773281316,1.09409302,902.74,901.95,1.393]
[1764773281919,1.09409302,902.77,901.95,1.393]
[1764773282218,1.09409302,902.75,901.95,1.393]
[1764773282417,1.09409302,902.76,901.95,1.393]
[1764773282619,1.09409302,902.74,901.95,1.393]
[1764773282812,1.09409302,902.72,901.95,1.393]
[1764773283017,1.09409302,902.69,901.95,1.393]
[1764773283218,1.09409302,902.68,901.95,1.393]
[1764773283619,1.09409302,902.69,901.95,1.393]
[1764773284716,1.09409302,902.71,901.95,1.393]
[1764773284916,1.09409302,902.71,901.94,0.88]
[1764773285221,1.09409302,902.69,901.94,0.88]
[1764773285417,1.09409302,902.75,901.94,0.88]
[1764773286022,1.09409302,902.76,901.94,0.88]
[1764773286225,1.09409302,902.94,901.94,0.88]
[1764773286522,0.19275987,903.22,901.94,0.88]
[1764773286523,1.09409302,902.98,901.94,0.88]
[1764773286722,1.09409302,903.2,901.95,0.86]
[1764773286918,0.19275987,903.22,901.95,0.86]
[1764773287319,1.09409302,903.2,901.95,0.86]
[1764773287924,1.09409302,903.19,901.95,0.86]
[1764773288224,1.09409302,903.18,901.95,0.86]
[1764773288822,1.09409302,903.19,901.95,0.86]
[1764773289030,0.19275987,903.22,901.95,0.86]
[1764773289827,1.09409302,903.13,901.95,0.86]
[1764773290127,1.09409302,903.14,901.95,0.86]
[1764773291029,1.09409302,903.21,901.95,0.86]
[1764773291227,0.19275987,903.22,901.95,0.86]
[1764773292328,0.19275987,903.22,902.02,0.77227438]
[1764773292530,0.19275987,903.22,902.05,0.77227438]
[1764773292729,0.19275987,903.22,902.04,0.77227438]
[1764773292927,0.19275987,903.22,902.1,0.77227438]
[1764773293129,0.19275987,903.22,902.09,0.77227438]
[1764773293329,0.19275987,903.22,902.08,0.77227438]
[1764773293530,0.19275987,903.22,902.1,0.77227438]
[1764773293831,0.19275987,903.22,902.06,0.77227438]
[1764773294032,0.19275987,903.22,902.07,0.77227438]
[1764773294228,0.19275987,903.22,902.04,0.77227438]
[1764773294429,0.19275987,903.22,902.01,0.77227438]
[1764773295533,0.19275987,903.22,902.02,0.77227438]
[1764773296335,0.19275987,903.22,902.01,0.77227438]
[1764773296735,0.19275987,903.22,901.95,0.86]
[1764773296736,0.19275987,903.22,901.99,0.77227438]
[1764773297337,0.19275987,903.22,902.0,0.77227438]
[1764773298438,0.19275987,903.22,902.01,0.77227438]
[1764773298834,0.19275987,903.22,902.02,0.77227438]
[1764773299339,0.19275987,903.22,902.03,0.894]
[1764773302645,1.28685289,903.22,902.03,0.894]
[1764773302845,1.09409302,903.15,902.03,0.894]
[1764773304044,1.09409302,903.09,902.03,0.894]
[1764773304648,1.09409302,903.08,902.03,0.894]
[1764773305144,1.09409302,903.09,902.03,0.894]
[1764773305543,1.09409302,903.1,902.03,0.894]
[1764773305748,1.09409302,903.18,902.03,0.894]
[1764773305944,1.09409302,903.17,902.03,0.894]
[1764773306245,1.09409302,903.2,902.03,0.894]
[1764773306446,0.19275987,903.22,902.03,0.894]
[1764773306447,1.09409302,903.16,902.03,0.894]
[1764773306644,1.09409302,903.08,902.03,0.894]
[1764773306847,1.09409302,902.97,902.03,0.894]
[1764773307143,1.09409302,902.98,902.03,0.894]
[1764773307347,1.09409302,902.97,902.03,0.894]
[1764773307846,1.09409302,902.99,902.03,0.894]
[1764773308144,1.09409302,903.06,902.03,0.894]
[1764773308344,1.09409302,903.04,902.03,0.894]
[1764773309145,1.09409302,902.9,902.03,0.894]
[1764773309351,1.09409302,902.89,902.03,0.894]
[1764773310950,1.09409302,902.9,902.03,0.894]
[1764773311149,1.09409302,902.89,902.03,0.894]
[1764773312350,1.09409302,902.92,902.03,0.894]
[1764773313246,1.09409302,902.99,902.03,0.894]
[1764773314151,1.09409302,902.93,902.03,0.894]
[1764773314352,1.09409302,902.92,902.03,0.894]
[1764773314651,1.09409302,902.88,902.03,0.894]
[1764773315048,1.09409302,902.82,902.03,0.894]
[1764773315252,1.09409302,902.83,902.03,0.894]
[1764773315553,1.09409302,902.83,902.04,0.887]
[1764773316553,1.09409302,902.75,902.04,0.887]
[1764773316750,2.67575052,902.69,902.04,0.887]
[1764773317352,3.74605073,902.92,902.04,0.887]
[1764773317353,1.64786525,902.13,902.04,0.887]
[1764773317554,1.64786525,902.18,902.04,0.887]
[1764773318150,1.64786525,902.14,902.04,0.887]
[1764773318348,1.64786525,902.2,902.04,0.887]
[1764773318550,2.67575052,902.79,902.04,0.887]
[1764773318551,1.64786525,902.1,902.04,0.887]
[1764773318750,1.64786525,902.05,902.04,0.69397551]
[1764773319053,2.67575052,902.75,900.06,0.19267556]
[1764773319252,1.09688476,901.91,900.06,0.19267556]
[1764773319454,1.64532715,902.07,900.06,0.19267556]
[1764773319455,1.09688476,901.9,900.06,0.19267556]
[1764773319851,1.09688476,901.91,900.06,0.19267556]
[1764773320050,1.09688476,901.93,900.06,0.19267556]
[1764773320350,3.74605073,902.9,900.06,0.19267556]
[1764773320351,1.09688476,902.04,900.06,0.19267556]
[1764773321057,1.09688476,901.73,899.65,0.19319059]
[1764773321250,0.01264447,902.94,900.09,1.129]
[1764773321251,1.09688476,901.79,900.09,1.129]
[1764773321451,1.09688476,901.78,900.09,1.129]
[1764773321653,1.09688476,901.62,900.09,1.129]
[1764773321852,1.09688476,901.61,900.09,1.129]
[1764773322257,1.09688476,901.77,900.09,1.129]
[1764773322456,1.09688476,901.63,900.09,1.129]
[1764773322756,1.09688476,901.61,900.09,1.129]
[1764773322957,0.19326086,901.25,900.1,0.961]
[1764773323457,0.81327361,900.99,900.1,0.961]
[1764773323654,0.81327361,901.0,900.1,0.961]
[1764773323852,0.81327361,901.15,900.1,0.961]
[1764773324058,0.81327361,901.21,900.1,0.961]
[1764773324259,0.19326086,901.25,900.1,0.961]
[1764773335566,0.01250146,901.89,900.1,0.961]
[1764773335767,0.1931209,901.43,900.1,0.961]
[1764773336868,0.1931209,901.43,900.11,1.02]
[1764773348978,0.81327361,902.28,900.11,1.02]
[1764773349276,0.19309679,901.49,900.11,1.02]
[1764773349473,0.81327361,902.26,900.11,1.02]
[1764773349677,0.19309786,901.49,900.11,1.02]
[1764773349874,0.81327361,902.26,900.11,1.02]
[1764773349875,0.81327361,902.25,900.11,1.02]
[1764773350073,0.81327361,902.24,900.11,1.02]
[1764773350277,0.81327361,902.22,900.11,1.02]
[1764773350475,0.81327361,902.23,900.11,1.02]
[1764773351179,0.1930925,901.71,900.11,1.02]
[1764773351574,0.1930925,901.71,900.12,1.076]
[1764773358776,0.01318076,902.61,900.12,1.076]
[1764773358976,0.19302449,901.76,900.12,1.076]
[1764773359180,0.01276335,902.66,900.12,1.076]
[1764773359380,0.19301646,901.81,900.13,0.77227438]
[1764773359583,0.01139147,902.71,900.12,1.076]
[1764773359878,1.09688476,903.12,900.13,0.77227438]
[1764773360280,1.09688476,903.1,900.14,0.77227438]
[1764773360883,1.09688476,903.1,900.12,1.076]
[1764773360884,0.19301754,902.37,900.19,0.77227438]
[1764773361282,1.09688476,902.24,900.12,1.076]
[1764773361480,1.09688476,902.03,900.12,1.076]
[1764773361683,0.19301754,902.37,900.12,1.076]
[1764773361684,1.09688476,902.0,900.12,1.076]
[1764773361884,1.09688476,901.99,900.12,1.076]
[1764773362180,1.09688476,901.88,900.12,1.076]
[1764773362381,1.09688476,901.92,900.12,1.076]
[1764773363286,1.09688476,901.89,900.12,1.076]
[1764773364287,1.09688476,901.86,900.12,1.076]
[1764773365288,1.09688476,901.84,900.12,1.076]
[1764773365487,1.09688476,901.85,900.12,1.076]
[1764773365888,1.09688476,901.9,900.12,1.076]
[1764773366091,1.09688476,902.14,900.12,1.076]
[1764773366388,1.09688476,902.15,900.13,1.074]
[1764773366584,1.09688476,902.17,900.13,1.074]
[1764773366787,1.09688476,902.29,900.13,1.074]
[1764773367288,1.09688476,902.26,900.13,1.074]
[1764773367690,1.09688476,902.16,900.13,1.074]
[1764773368286,1.09688476,902.12,900.13,1.074]
[1764773369491,1.09688476,902.08,900.13,1.074]
[1764773369787,1.09688476,901.98,900.13,1.074]
[1764773369991,1.09688476,901.95,900.13,1.074]
[1764773370191,1.09688476,901.89,900.13,1.074]
[1764773370393,1.09688476,901.88,900.13,1.074]
[1764773370886,1.09688476,901.8,900.13,1.074]
[1764773371092,1.09688476,901.81,900.13,1.074]
[1764773371392,0.19301754,902.37,900.13,1.074]
[1764773371393,1.09688476,901.76,900.13,1.074]
[1764773372393,1.09688476,901.67,900.13,1.074]
[1764773372594,1.09688476,901.65,900.13,1.074]
[1764773372795,1.09688476,901.6,900.13,1.074]
[1764773373197,1.09688476,901.61,900.13,1.074]
[1764773373392,0.19301754,902.37,900.13,1.074]
[1764773373393,1.09688476,901.48,900.13,1.074]
[1764773374296,1.09688476,901.42,900.13,1.074]
[1764773374496,1.09688476,901.41,900.13,1.074]
[1764773374796,2.67575052,902.22,900.13,1.074]
[1764773374797,1.09688476,901.42,900.13,1.074]
[1764773375092,1.09688476,901.39,900.13,1.074]
[1764773375295,1.09688476,901.29,900.13,1.074]
[1764773375701,1.09688476,901.28,900.13,1.074]
[1764773375902,1.09688476,901.25,900.13,1.074]
[1764773376104,1.09688476,901.24,900.13,1.074]
[1764773376304,1.09688476,901.12,900.13,1.074]
[1764773376497,1.09688476,901.15,900.13,1.074]
[1764773376898,1.09688476,901.23,900.13,1.074]
[1764773378199,1.09688476,901.41,900.13,1.074]
[1764773378398,1.09688476,901.4,900.13,1.074]
[1764773378602,1.64532715,901.56,900.13,1.074]
[1764773378603,1.09688476,901.39,900.13,1.074]
[1764773379803,1.09688476,901.25,900.13,1.074]
[1764773380201,1.09688476,901.26,900.13,1.074]
[1764773380601,1.09688476,901.23,900.13,1.074]
[1764773380806,1.09688476,901.18,900.13,1.074]
[1764773381603,2.67575052,901.99,900.13,1.074]
[1764773381604,1.09688476,901.16,900.13,1.074]
[1764773382303,1.09688476,901.14,900.13,1.074]
[1764773382705,1.09688476,901.01,900.13,1.074]
[1764773382904,1.09688476,900.94,900.13,1.074]
[1764773383607,1.09688476,900.9,900.13,1.074]
[1764773383808,1.09688476,900.84,900.13,1.074]
[1764773384003,1.09688476,900.88,900.13,1.074]
[1764773384210,1.09688476,900.93,900.13,1.074]
[1764773384505,1.09688476,901.11,900.13,1.074]
[1764773384708,1.09688476,901.12,900.13,1.074]
[1764773384903,1.09688476,901.13,900.13,1.074]
[1764773385309,1.09688476,901.12,900.13,1.074]
[1764773385703,1.09688476,901.18,900.13,1.074]
[1764773385905,1.09688476,901.32,900.13,1.074]
[1764773386106,1.09688476,901.33,900.13,1.074]
[1764773386310,1.09688476,901.38,900.13,1.074]
[1764773386507,1.09688476,901.42,900.13,1.074]
[1764773386709,1.09688476,901.4,900.13,1.074]
[1764773387208,1.09688476,901.41,900.13,1.074]
[1764773387806,1.09688476,901.42,900.13,1.074]
[1764773388308,1.09688476,901.36,900.13,1.074]
[1764773389212,1.09688476,901.44,900.13,1.074]
[1764773389512,1.09688476,901.42,900.13,1.074]
[1764773389711,1.09688476,901.41,900.13,1.074]
[1764773389912,1.09688476,901.45,900.13,1.074]
[1764773390312,1.09688476,901.52,900.13,1.074]
[1764773390812,1.09688476,901.54,900.13,1.074]
[1764773391012,1.09688476,901.61,900.13,1.074]
[1764773391412,1.09688476,901.64,900.13,1.074]